[Event "Late-Titled-Tuesday-Blitz-October-17-2023"]
[Site "Chess.com"]
[Date "2023.10.17"]
[Round "4"]
[White "Walter_White_Poland"]
[Black "Gyulamiryan-koryun"]
[Result "1-0"]
[WhiteElo "2324"]
[BlackElo "1956"]
[TimeControl "180+1"]
[EndTime "14:37:59 PDT"]
[Termination "Walter_White_Poland won on time"]

1. e4 {[%clk 0:03:00.9]} 1... e5 {[%clk 0:02:59]} 2. Nf3 {[%clk 0:03:00.9]} 2...
Nc6 {[%clk 0:02:58.9]} 3. Bb5 {[%clk 0:03:00.2]} 3... a6 {[%clk 0:02:57.7]} 4.
Ba4 {[%clk 0:03:00.2]} 4... Nf6 {[%clk 0:02:57.4]} 5. O-O {[%clk 0:02:58.3]}
5... Be7 {[%clk 0:02:57.2]} 6. Re1 {[%clk 0:02:58.4]} 6... b5 {[%clk 0:02:57]}
7. Bb3 {[%clk 0:02:58]} 7... O-O {[%clk 0:02:57.7]} 8. d4 {[%clk 0:02:58.1]}
8... exd4 {[%clk 0:02:54.8]} 9. e5 {[%clk 0:02:56.7]} 9... Ne8 {[%clk
0:02:46.7]} 10. c3 {[%clk 0:02:56.8]} 10... d5 {[%clk 0:02:43]} 11. Nxd4 {[%clk
0:02:53.9]} 11... Nxd4 {[%clk 0:02:34.6]} 12. cxd4 {[%clk 0:02:53.8]} 12... c6
{[%clk 0:02:32.9]} 13. Be3 {[%clk 0:02:53.4]} 13... Bf5 {[%clk 0:02:26.2]} 14.
Nd2 {[%clk 0:02:52.9]} 14... Nc7 {[%clk 0:02:23.2]} 15. g4 {[%clk 0:02:51.7]}
15... Be6 {[%clk 0:02:12.3]} 16. f4 {[%clk 0:02:51.2]} 16... Bh4 {[%clk
0:02:05.2]} 17. Rf1 {[%clk 0:02:45.6]} 17... f6 {[%clk 0:01:44]} 18. f5 {[%clk
0:02:41]} 18... Bd7 {[%clk 0:01:41.2]} 19. e6 {[%clk 0:02:40.8]} 19... Be8
{[%clk 0:01:40.1]} 20. Bf4 {[%clk 0:02:37.9]} 20... Bg5 {[%clk 0:01:34.8]} 21.
Bxg5 {[%clk 0:02:34.5]} 21... fxg5 {[%clk 0:01:34.8]} 22. Nf3 {[%clk 0:02:33.8]}
22... h6 {[%clk 0:01:33.1]} 23. Rc1 {[%clk 0:02:33.3]} 23... h5 {[%clk
0:01:26.6]} 24. h3 {[%clk 0:02:31.2]} 24... g6 {[%clk 0:01:16]} 25. Ne5 {[%clk
0:02:20.4]} 25... gxf5 {[%clk 0:01:03.4]} 26. gxf5 {[%clk 0:02:19.9]} 26... g4
{[%clk 0:00:53.7]} 27. Rc2 {[%clk 0:02:08.7]} 27... Qh4 {[%clk 0:00:40.9]} 28.
hxg4 {[%clk 0:02:01.3]} 28... Nxe6 {[%clk 0:00:19.9]} 29. fxe6 {[%clk
0:01:05.4]} 29... Rxf1+ {[%clk 0:00:18]} 30. Qxf1 {[%clk 0:00:59.9]} 30... Qg3+
{[%clk 0:00:15.3]} 31. Rg2 {[%clk 0:00:58.8]} 31... Qe3+ {[%clk 0:00:14.6]} 32.
Qf2 {[%clk 0:00:58.3]} 32... Qxf2+ {[%clk 0:00:10.5]} 33. Kxf2 {[%clk
0:00:57.6]} 1-0

[Event "Late-Titled-Tuesday-Blitz-October-17-2023"]
[Site "Chess.com"]
[Date "2023.10.17"]
[Round "4"]
[White "Freeeeeeeeeeeeeeeeee"]
[Black "The_Princess_Moon"]
[Result "0-1"]
[WhiteElo "1973"]
[BlackElo "2330"]
[TimeControl "180+1"]
[EndTime "14:38:05 PDT"]
[Termination "The_Princess_Moon won on time"]

1. Nc3 {[%clk 0:03:00.9]} 1... c5 {[%clk 0:02:59]} 2. Nf3 {[%clk 0:02:55.6]}
2... d6 {[%clk 0:02:57.1]} 3. b3 {[%clk 0:02:53.3]} 3... Nc6 {[%clk 0:02:56.3]}
4. Bb2 {[%clk 0:02:53.6]} 4... Nf6 {[%clk 0:02:55.8]} 5. e4 {[%clk 0:02:53.8]}
5... g6 {[%clk 0:02:55.7]} 6. Nd5 {[%clk 0:02:51.7]} 6... Bg7 {[%clk 0:02:53]}
7. Nxf6+ {[%clk 0:02:51.7]} 7... exf6 {[%clk 0:02:52.4]} 8. Bc4 {[%clk
0:02:48.9]} 8... O-O {[%clk 0:02:47.9]} 9. O-O {[%clk 0:02:48.3]} 9... Bg4
{[%clk 0:02:47.1]} 10. h3 {[%clk 0:02:48.1]} 10... Bxf3 {[%clk 0:02:44.7]} 11.
Qxf3 {[%clk 0:02:49]} 11... Ne5 {[%clk 0:02:44.5]} 12. Qd1 {[%clk 0:02:36.9]}
12... Qd7 {[%clk 0:02:24.2]} 13. Bd5 {[%clk 0:01:59.6]} 13... Nc6 {[%clk
0:02:16.4]} 14. Qf3 {[%clk 0:01:43.8]} 14... Nb4 {[%clk 0:02:06.9]} 15. Bxf6
{[%clk 0:01:06.2]} 15... Nxc2 {[%clk 0:02:02.2]} 16. Bxg7 {[%clk 0:00:50.7]}
16... Kxg7 {[%clk 0:01:59.6]} 17. Qc3+ {[%clk 0:00:46.8]} 17... Nd4 {[%clk
0:01:59.3]} 18. Rae1 {[%clk 0:00:44]} 18... Kg8 {[%clk 0:01:58.4]} 19. f4 {[%clk
0:00:41.6]} 19... Rab8 {[%clk 0:01:47.3]} 20. f5 {[%clk 0:00:33.8]} 20... b5
{[%clk 0:01:41.2]} 21. Qg3 {[%clk 0:00:28]} 21... Kh8 {[%clk 0:01:30.8]} 22. f6
{[%clk 0:00:27.2]} 22... Nc6 {[%clk 0:01:16.9]} 23. Qg5 {[%clk 0:00:22.5]} 23...
Nd4 {[%clk 0:01:04.5]} 24. Qh6 {[%clk 0:00:21.1]} 24... Rg8 {[%clk 0:01:04.3]}
25. Rf4 {[%clk 0:00:18.6]} 25... g5 {[%clk 0:00:58.9]} 26. Rff1 {[%clk
0:00:11.5]} 26... Rg6 {[%clk 0:00:58.2]} 27. Qh5 {[%clk 0:00:10.9]} 27... Re8
{[%clk 0:00:52.3]} 28. h4 {[%clk 0:00:06.9]} 28... Re5 {[%clk 0:00:50.4]} 29.
hxg5 {[%clk 0:00:06.9]} 29... Rexg5 {[%clk 0:00:49.6]} 30. Qh2 {[%clk
0:00:06.9]} 30... Rxg2+ {[%clk 0:00:47.1]} 31. Qxg2 {[%clk 0:00:07.8]} 31...
Rxg2+ {[%clk 0:00:46.9]} 32. Kxg2 {[%clk 0:00:08.4]} 32... Qg4+ {[%clk
0:00:46.8]} 33. Kh1 {[%clk 0:00:08]} 33... Nf3 {[%clk 0:00:45.6]} 34. Re2 {[%clk
0:00:05.2]} 34... Qh3+ {[%clk 0:00:43.7]} 0-1

[Event "Late-Titled-Tuesday-Blitz-October-17-2023"]
[Site "Chess.com"]
[Date "2023.10.17"]
[Round "4"]
[White "luizzy"]
[Black "giomar27"]
[Result "1-0"]
[WhiteElo "2565"]
[BlackElo "2349"]
[TimeControl "180+1"]
[EndTime "14:38:08 PDT"]
[Termination "luizzy won by resignation"]

1. b3 {[%clk 0:03:00.9]} 1... e5 {[%clk 0:02:57.2]} 2. Bb2 {[%clk 0:03:01.1]}
2... d6 {[%clk 0:02:57.2]} 3. e3 {[%clk 0:03:01.8]} 3... f5 {[%clk 0:02:56.6]}
4. d4 {[%clk 0:03:01.7]} 4... e4 {[%clk 0:02:55.4]} 5. c4 {[%clk 0:03:01.6]}
5... Nf6 {[%clk 0:02:55.4]} 6. Nc3 {[%clk 0:03:01.5]} 6... g6 {[%clk 0:02:55.7]}
7. Nge2 {[%clk 0:03:00.5]} 7... Bg7 {[%clk 0:02:55.9]} 8. d5 {[%clk 0:02:57.2]}
8... O-O {[%clk 0:02:55.8]} 9. Nd4 {[%clk 0:02:57.3]} 9... Qe7 {[%clk
0:02:52.5]} 10. Be2 {[%clk 0:02:56.4]} 10... a5 {[%clk 0:02:52.6]} 11. h4 {[%clk
0:02:55.5]} 11... h6 {[%clk 0:02:50.4]} 12. Qd2 {[%clk 0:02:52.4]} 12... Na6
{[%clk 0:02:49.7]} 13. O-O-O {[%clk 0:02:34.4]} 13... Bd7 {[%clk 0:02:49.5]} 14.
f3 {[%clk 0:02:28.6]} 14... Nc5 {[%clk 0:02:45.1]} 15. f4 {[%clk 0:02:07.6]}
15... Rfe8 {[%clk 0:02:33.7]} 16. h5 {[%clk 0:02:07.4]} 16... g5 {[%clk
0:01:44.5]} 17. fxg5 {[%clk 0:02:05.7]} 17... hxg5 {[%clk 0:01:44.9]} 18. g3
{[%clk 0:01:39.1]} 18... Bh6 {[%clk 0:01:31.8]} 19. Rdf1 {[%clk 0:01:36.5]}
19... Qe5 {[%clk 0:01:23.7]} 20. Kb1 {[%clk 0:01:27.3]} 20... g4 {[%clk
0:01:19.4]} 21. Ncb5 {[%clk 0:00:57.7]} 21... Rac8 {[%clk 0:01:11.4]} 22. Nxf5
{[%clk 0:00:51.3]} 22... Qxf5 {[%clk 0:00:49]} 23. Rxf5 {[%clk 0:00:50.1]} 23...
Bxf5 {[%clk 0:00:49.9]} 24. Rf1 {[%clk 0:00:38.9]} 24... Nxh5 {[%clk 0:00:32.2]}
25. Rxf5 {[%clk 0:00:33.1]} 25... Nxg3 {[%clk 0:00:32.4]} 26. Bxg4 {[%clk
0:00:23.8]} 26... Nd3 {[%clk 0:00:27.8]} 27. Qg2 {[%clk 0:00:20]} 27... Nxf5
{[%clk 0:00:26]} 28. Bxf5+ {[%clk 0:00:20.9]} 28... Kf8 {[%clk 0:00:22.7]} 29.
Bxc8 {[%clk 0:00:20.6]} 29... Nxb2 {[%clk 0:00:22.7]} 30. Qxb2 {[%clk
0:00:17.9]} 30... Rxc8 {[%clk 0:00:23]} 31. Qh8+ {[%clk 0:00:17.9]} 1-0

[Event "Late-Titled-Tuesday-Blitz-October-17-2023"]
[Site "Chess.com"]
[Date "2023.10.17"]
[Round "4"]
[White "eljanov"]
[Black "GlavkonVVS"]
[Result "1-0"]
[WhiteElo "2831"]
[BlackElo "2537"]
[TimeControl "180+1"]
[EndTime "14:38:13 PDT"]
[Termination "eljanov won by checkmate"]

1. d4 {[%clk 0:02:59.1]} 1... Nf6 {[%clk 0:03:00.5]} 2. c4 {[%clk 0:02:58.8]}
2... e6 {[%clk 0:02:59.4]} 3. Nc3 {[%clk 0:02:58.9]} 3... c5 {[%clk 0:02:57.4]}
4. d5 {[%clk 0:02:58.7]} 4... exd5 {[%clk 0:02:58]} 5. cxd5 {[%clk 0:02:59.6]}
5... d6 {[%clk 0:02:58.6]} 6. Nf3 {[%clk 0:03:00]} 6... g6 {[%clk 0:02:59.1]} 7.
Nd2 {[%clk 0:03:00.1]} 7... Bg7 {[%clk 0:02:59.6]} 8. e4 {[%clk 0:03:00.7]} 8...
O-O {[%clk 0:02:59.6]} 9. Be2 {[%clk 0:03:01.3]} 9... a6 {[%clk 0:02:59.6]} 10.
a4 {[%clk 0:03:01]} 10... Re8 {[%clk 0:02:59.8]} 11. O-O {[%clk 0:03:01.2]}
11... Nbd7 {[%clk 0:03:00.1]} 12. Qc2 {[%clk 0:02:58.4]} 12... Rb8 {[%clk
0:02:57]} 13. Nc4 {[%clk 0:02:48.4]} 13... Ne5 {[%clk 0:02:52.2]} 14. Na3 {[%clk
0:02:47.5]} 14... Bd7 {[%clk 0:02:34.6]} 15. f4 {[%clk 0:02:42.5]} 15... Neg4
{[%clk 0:02:34.2]} 16. h3 {[%clk 0:02:41.8]} 16... b5 {[%clk 0:02:32.5]} 17.
hxg4 {[%clk 0:02:33.4]} 17... b4 {[%clk 0:02:30.1]} 18. g5 {[%clk 0:02:33.7]}
18... Nh5 {[%clk 0:02:26.4]} 19. Bxh5 {[%clk 0:02:30.6]} 19... bxc3 {[%clk
0:02:19.2]} 20. bxc3 {[%clk 0:02:29.3]} 20... gxh5 {[%clk 0:02:16.7]} 21. f5
{[%clk 0:02:21.6]} 21... Bxa4 {[%clk 0:02:04.1]} 22. Qxa4 {[%clk 0:02:16.1]}
22... Bxc3 {[%clk 0:02:04]} 23. Ra2 {[%clk 0:01:56]} 23... Bd4+ {[%clk
0:02:01.8]} 24. Raf2 {[%clk 0:01:31.1]} 24... Rxe4 {[%clk 0:02:00.3]} 25. Qd1
{[%clk 0:01:27]} 25... Rg4 {[%clk 0:01:38.5]} 26. Nc2 {[%clk 0:01:23.6]} 26...
Bxf2+ {[%clk 0:01:35.7]} 27. Kxf2 {[%clk 0:01:22.7]} 27... Rb1 {[%clk
0:01:32.1]} 28. Qf3 {[%clk 0:01:22.3]} 28... Rxc1 {[%clk 0:01:21.5]} 29. Rxc1
{[%clk 0:01:22]} 29... Qxg5 {[%clk 0:01:21.7]} 30. Qe3 {[%clk 0:00:53.2]} 30...
Rxg2+ {[%clk 0:01:20.7]} 31. Kf1 {[%clk 0:00:53.1]} 31... Qg4 {[%clk 0:00:57.9]}
32. f6 {[%clk 0:00:53]} 32... Re2 {[%clk 0:00:28.3]} 33. Qxe2 {[%clk 0:00:50.2]}
33... Qf4+ {[%clk 0:00:28.3]} 34. Kg2 {[%clk 0:00:49.6]} 34... Qg5+ {[%clk
0:00:24.7]} 35. Kh3 {[%clk 0:00:49]} 35... Qf5+ {[%clk 0:00:19]} 36. Kg3 {[%clk
0:00:47.4]} 36... Qg5+ {[%clk 0:00:18.3]} 37. Kf2 {[%clk 0:00:46.2]} 37... Qf4+
{[%clk 0:00:15.8]} 38. Qf3 {[%clk 0:00:43.7]} 38... Qxc1 {[%clk 0:00:15.1]} 39.
Qg3+ {[%clk 0:00:43.9]} 39... Kf8 {[%clk 0:00:14.1]} 40. Qxd6+ {[%clk
0:00:44.1]} 40... Kg8 {[%clk 0:00:12.9]} 41. Qd8# {[%clk 0:00:44.1]} 1-0

[Event "Late-Titled-Tuesday-Blitz-October-17-2023"]
[Site "Chess.com"]
[Date "2023.10.17"]
[Round "4"]
[White "aa175"]
[Black "NowInChess"]
[Result "1-0"]
[WhiteElo "2603"]
[BlackElo "2249"]
[TimeControl "180+1"]
[EndTime "14:38:13 PDT"]
[Termination "aa175 won on time"]

1. d4 {[%clk 0:03:00.9]} 1... Nf6 {[%clk 0:02:59.2]} 2. Nf3 {[%clk 0:03:00.8]}
2... g6 {[%clk 0:02:58.7]} 3. c4 {[%clk 0:03:00.8]} 3... Bg7 {[%clk 0:02:59.1]}
4. Nc3 {[%clk 0:03:01.7]} 4... O-O {[%clk 0:02:59.2]} 5. e4 {[%clk 0:03:01.8]}
5... d6 {[%clk 0:02:59.9]} 6. Be3 {[%clk 0:03:00.6]} 6... Na6 {[%clk 0:02:59.2]}
7. Be2 {[%clk 0:02:59]} 7... c5 {[%clk 0:02:55.1]} 8. d5 {[%clk 0:02:59.3]} 8...
e5 {[%clk 0:02:53.1]} 9. Nd2 {[%clk 0:02:58.1]} 9... Ne8 {[%clk 0:02:41.3]} 10.
g4 {[%clk 0:02:56.4]} 10... f5 {[%clk 0:02:31]} 11. exf5 {[%clk 0:02:57.3]}
11... gxf5 {[%clk 0:02:30.7]} 12. gxf5 {[%clk 0:02:58.2]} 12... Bxf5 {[%clk
0:02:29.8]} 13. Rg1 {[%clk 0:02:58.9]} 13... Kh8 {[%clk 0:02:25.1]} 14. Nde4
{[%clk 0:02:44.3]} 14... Nf6 {[%clk 0:02:21.1]} 15. Ng5 {[%clk 0:02:32.5]} 15...
Nb4 {[%clk 0:01:56.2]} 16. Ne6 {[%clk 0:02:25.9]} 16... Nc2+ {[%clk 0:01:44.7]}
17. Qxc2 {[%clk 0:02:24.3]} 17... Bxc2 {[%clk 0:01:44.1]} 18. Nxd8 {[%clk
0:01:58.6]} 18... Raxd8 {[%clk 0:01:45]} 19. Kd2 {[%clk 0:01:54.6]} 19... Bg6
{[%clk 0:01:38.7]} 20. Bd3 {[%clk 0:01:51]} 20... e4 {[%clk 0:01:32.7]} 21. Bc2
{[%clk 0:01:51.1]} 21... Rfe8 {[%clk 0:01:14.5]} 22. Rae1 {[%clk 0:01:46.5]}
22... Nd7 {[%clk 0:01:10.6]} 23. Bg5 {[%clk 0:01:44.5]} 23... Rb8 {[%clk
0:00:36.5]} 24. Nxe4 {[%clk 0:01:31.7]} 24... Bxe4 {[%clk 0:00:32.6]} 25. Bxe4
{[%clk 0:01:31.1]} 25... Bxb2 {[%clk 0:00:27.1]} 26. Bf5 {[%clk 0:01:31.5]}
26... Nf6 {[%clk 0:00:13.4]} 27. Rxe8+ {[%clk 0:01:23.4]} 27... Rxe8 {[%clk
0:00:11.5]} 28. Bxf6+ {[%clk 0:01:20.8]} 28... Bxf6 {[%clk 0:00:09.9]} 29. Be6
{[%clk 0:01:21.5]} 29... Be5 {[%clk 0:00:05.6]} 30. h4 {[%clk 0:01:17.8]} 30...
Rf8 {[%clk 0:00:05.8]} 31. f3 {[%clk 0:01:10]} 31... h6 {[%clk 0:00:04.7]} 32.
Ke2 {[%clk 0:01:08.3]} 32... Bd4 {[%clk 0:00:02.4]} 33. Rg6 {[%clk 0:01:06]}
33... Kh7 {[%clk 0:00:02.8]} 34. h5 {[%clk 0:01:06]} 34... Be5 {[%clk
0:00:02.8]} 35. Bg4 {[%clk 0:01:04.1]} 35... Rf6 {[%clk 0:00:02.4]} 36. a4
{[%clk 0:00:59.2]} 36... Rxg6 {[%clk 0:00:02.1]} 37. Bf5 {[%clk 0:00:58.5]}
37... Kg7 {[%clk 0:00:01.9]} 38. hxg6 {[%clk 0:00:57.5]} 38... a5 {[%clk
0:00:02.2]} 39. Kf2 {[%clk 0:00:51.9]} 39... Kf6 {[%clk 0:00:02.3]} 40. Be4
{[%clk 0:00:52.1]} 40... Kg5 {[%clk 0:00:01.3]} 41. Kg2 {[%clk 0:00:52.4]} 41...
Kf4 {[%clk 0:00:01.1]} 42. Kh3 {[%clk 0:00:52.6]} 1-0

[Event "Late-Titled-Tuesday-Blitz-October-17-2023"]
[Site "Chess.com"]
[Date "2023.10.17"]
[Round "4"]
[White "maurovargas01"]
[Black "Hirna2005"]
[Result "0-1"]
[WhiteElo "1910"]
[BlackElo "2314"]
[TimeControl "180+1"]
[EndTime "14:38:18 PDT"]
[Termination "Hirna2005 won on time"]

1. e4 {[%clk 0:02:59.8]} 1... g6 {[%clk 0:03:00.5]} 2. Nc3 {[%clk 0:02:58.3]}
2... Bg7 {[%clk 0:03:01]} 3. f4 {[%clk 0:02:58.6]} 3... d6 {[%clk 0:03:01.5]} 4.
Nf3 {[%clk 0:02:58.9]} 4... c5 {[%clk 0:03:01.6]} 5. Bc4 {[%clk 0:02:58.9]} 5...
Nc6 {[%clk 0:03:01.2]} 6. O-O {[%clk 0:02:58.9]} 6... Nf6 {[%clk 0:02:59.9]} 7.
d3 {[%clk 0:02:57.6]} 7... O-O {[%clk 0:02:59.5]} 8. a3 {[%clk 0:02:57.5]} 8...
Bg4 {[%clk 0:02:56.4]} 9. Nd5 {[%clk 0:02:51.2]} 9... Nd4 {[%clk 0:02:49.6]} 10.
Ne3 {[%clk 0:02:27.7]} 10... Nxf3+ {[%clk 0:02:46.8]} 11. gxf3 {[%clk
0:02:27.2]} 11... Bh3 {[%clk 0:02:46.8]} 12. Rf2 {[%clk 0:02:26.3]} 12... e6
{[%clk 0:02:43.3]} 13. Qe1 {[%clk 0:02:19.8]} 13... d5 {[%clk 0:02:38.1]} 14.
Bb3 {[%clk 0:02:12.6]} 14... Nh5 {[%clk 0:02:11.9]} 15. Ng4 {[%clk 0:02:00.8]}
15... Bd4 {[%clk 0:02:05.6]} 16. Be3 {[%clk 0:01:55.9]} 16... dxe4 {[%clk
0:01:55.4]} 17. dxe4 {[%clk 0:01:48.8]} 17... Qh4 {[%clk 0:01:34.2]} 18. Nh6+
{[%clk 0:01:26.7]} 18... Kg7 {[%clk 0:01:31.5]} 19. f5 {[%clk 0:01:20.9]} 19...
Nf4 {[%clk 0:01:23.3]} 20. Ng4 {[%clk 0:00:55.3]} 20... Bxg4 {[%clk 0:01:20.1]}
21. fxg4 {[%clk 0:00:51.5]} 21... Nh3+ {[%clk 0:01:15.8]} 22. Kf1 {[%clk
0:00:39.7]} 22... Nxf2 {[%clk 0:01:10.2]} 23. Qxf2 {[%clk 0:00:35]} 23... Qxf2+
{[%clk 0:01:02.5]} 24. Kxf2 {[%clk 0:00:32.9]} 24... Bxb2 {[%clk 0:00:55.5]} 25.
Rf1 {[%clk 0:00:13.9]} 25... Bd4 {[%clk 0:00:55]} 26. Ke2 {[%clk 0:00:10.3]}
26... Bxe3 {[%clk 0:00:52.9]} 27. f6+ {[%clk 0:00:09.1]} 27... Kg8 {[%clk
0:00:51.2]} 28. Kxe3 {[%clk 0:00:10]} 28... Rfd8 {[%clk 0:00:50.5]} 29. h4
{[%clk 0:00:09.2]} 29... Rd4 {[%clk 0:00:48.5]} 30. h5 {[%clk 0:00:10.1]} 30...
Rad8 {[%clk 0:00:46.7]} 31. hxg6 {[%clk 0:00:07.4]} 31... hxg6 {[%clk
0:00:46.3]} 32. Rh1 {[%clk 0:00:03.3]} 32... c4 {[%clk 0:00:37.9]} 0-1

[Event "Late-Titled-Tuesday-Blitz-October-17-2023"]
[Site "Chess.com"]
[Date "2023.10.17"]
[Round "4"]
[White "Siemba"]
[Black "Cayse"]
[Result "1-0"]
[WhiteElo "2578"]
[BlackElo "2869"]
[TimeControl "180+1"]
[EndTime "14:38:20 PDT"]
[Termination "Siemba won by resignation"]

1. e4 {[%clk 0:03:00.9]} 1... e5 {[%clk 0:02:59.7]} 2. Nf3 {[%clk 0:03:01.2]}
2... Nc6 {[%clk 0:02:59]} 3. Bc4 {[%clk 0:03:01.9]} 3... Nf6 {[%clk 0:02:58.6]}
4. d3 {[%clk 0:03:00.5]} 4... Bc5 {[%clk 0:02:57.8]} 5. Nc3 {[%clk 0:03:00]}
5... a6 {[%clk 0:02:56.6]} 6. a4 {[%clk 0:02:54.6]} 6... d6 {[%clk 0:02:54.8]}
7. Bg5 {[%clk 0:02:54.2]} 7... h6 {[%clk 0:02:54.4]} 8. Bxf6 {[%clk 0:02:54.5]}
8... Qxf6 {[%clk 0:02:54]} 9. Nd5 {[%clk 0:02:54.7]} 9... Qd8 {[%clk 0:02:53.9]}
10. c3 {[%clk 0:02:55.2]} 10... Ba7 {[%clk 0:02:52.5]} 11. O-O {[%clk
0:02:49.4]} 11... O-O {[%clk 0:02:51.9]} 12. h3 {[%clk 0:02:49.8]} 12... Kh8
{[%clk 0:02:51.2]} 13. Ne3 {[%clk 0:02:47.3]} 13... Ne7 {[%clk 0:02:29.4]} 14.
d4 {[%clk 0:02:45]} 14... exd4 {[%clk 0:02:29.5]} 15. Nxd4 {[%clk 0:02:41.2]}
15... c6 {[%clk 0:02:26.6]} 16. Bb3 {[%clk 0:02:35.1]} 16... Qc7 {[%clk
0:02:26.6]} 17. Qh5 {[%clk 0:02:32.8]} 17... Ng8 {[%clk 0:02:04.5]} 18. Rad1
{[%clk 0:02:27]} 18... Nf6 {[%clk 0:01:57.3]} 19. Qh4 {[%clk 0:02:23.6]} 19...
Re8 {[%clk 0:01:57.5]} 20. Bc2 {[%clk 0:02:18.3]} 20... d5 {[%clk 0:01:10.9]}
21. exd5 {[%clk 0:02:02]} 21... Nxd5 {[%clk 0:01:11.8]} 22. Nxd5 {[%clk
0:01:51.8]} 22... cxd5 {[%clk 0:01:12.7]} 23. Rfe1 {[%clk 0:01:50.1]} 23... Bd7
{[%clk 0:00:54.4]} 24. Qh5 {[%clk 0:01:45.7]} 24... Rxe1+ {[%clk 0:00:51.3]} 25.
Rxe1 {[%clk 0:01:43.2]} 25... Bxd4 {[%clk 0:00:49.8]} 26. Qxf7 {[%clk
0:01:38.3]} 26... Qc6 {[%clk 0:00:16.3]} 27. Re7 {[%clk 0:01:28.3]} 27... Bxh3
{[%clk 0:00:11.3]} 28. gxh3 {[%clk 0:01:25.6]} 28... Bf6 {[%clk 0:00:06.2]} 29.
Re6 {[%clk 0:00:30.9]} 29... Qc4 {[%clk 0:00:06.3]} 30. Re8+ {[%clk 0:00:19.6]}
1-0

[Event "Late-Titled-Tuesday-Blitz-October-17-2023"]
[Site "Chess.com"]
[Date "2023.10.17"]
[Round "4"]
[White "Miguelitro69"]
[Black "Nf3c5"]
[Result "0-1"]
[WhiteElo "2316"]
[BlackElo "2612"]
[TimeControl "180+1"]
[EndTime "14:38:20 PDT"]
[Termination "Nf3c5 won by checkmate"]

1. e4 {[%clk 0:02:59.8]} 1... c5 {[%clk 0:02:57.4]} 2. Nf3 {[%clk 0:02:56.4]}
2... Nc6 {[%clk 0:02:57.3]} 3. d4 {[%clk 0:02:51.9]} 3... cxd4 {[%clk 0:02:57]}
4. Nxd4 {[%clk 0:02:52.8]} 4... e5 {[%clk 0:02:57.2]} 5. Nb5 {[%clk 0:02:52.5]}
5... d6 {[%clk 0:02:56.7]} 6. N1c3 {[%clk 0:02:52]} 6... a6 {[%clk 0:02:56]} 7.
Na3 {[%clk 0:02:52.3]} 7... Be6 {[%clk 0:02:49.4]} 8. Nd5 {[%clk 0:02:51.4]}
8... Bxd5 {[%clk 0:02:48.7]} 9. exd5 {[%clk 0:02:51.5]} 9... Nce7 {[%clk
0:02:47.2]} 10. c4 {[%clk 0:02:50.4]} 10... Nf6 {[%clk 0:02:40.5]} 11. Be2
{[%clk 0:02:50.2]} 11... g6 {[%clk 0:02:38.9]} 12. O-O {[%clk 0:02:50.3]} 12...
Bg7 {[%clk 0:02:39.4]} 13. Be3 {[%clk 0:02:45.7]} 13... O-O {[%clk 0:02:37.8]}
14. Rc1 {[%clk 0:02:46.2]} 14... a5 {[%clk 0:02:30.4]} 15. Nb5 {[%clk
0:02:45.1]} 15... b6 {[%clk 0:02:29.4]} 16. a3 {[%clk 0:02:44.6]} 16... Nf5
{[%clk 0:01:56.9]} 17. Bd2 {[%clk 0:02:35.3]} 17... Ne4 {[%clk 0:01:52.8]} 18.
Be1 {[%clk 0:02:31.1]} 18... a4 {[%clk 0:01:48.6]} 19. f3 {[%clk 0:02:29.6]}
19... Nc5 {[%clk 0:01:21.3]} 20. Bf2 {[%clk 0:02:23.7]} 20... Bh6 {[%clk
0:01:20.9]} 21. Rc3 {[%clk 0:02:22.1]} 21... Qe7 {[%clk 0:01:16.9]} 22. Bd3
{[%clk 0:02:19.8]} 22... Ne3 {[%clk 0:01:12.1]} 23. Bxe3 {[%clk 0:01:57.1]}
23... Bxe3+ {[%clk 0:01:10.2]} 24. Kh1 {[%clk 0:01:57.7]} 24... f5 {[%clk
0:01:10.7]} 25. Bxf5 {[%clk 0:01:54.9]} 25... gxf5 {[%clk 0:01:02.1]} 26. Rxe3
{[%clk 0:01:54]} 26... f4 {[%clk 0:00:59.6]} 27. Re2 {[%clk 0:01:51.9]} 27...
Qd7 {[%clk 0:00:51.2]} 28. Qe1 {[%clk 0:01:47]} 28... Kh8 {[%clk 0:00:50.8]} 29.
Qh4 {[%clk 0:01:46.3]} 29... Rf7 {[%clk 0:00:36.6]} 30. Qh6 {[%clk 0:01:44.4]}
30... Rd8 {[%clk 0:00:36.6]} 31. Rd1 {[%clk 0:01:41.6]} 31... Rg7 {[%clk
0:00:34.9]} 32. Qf6 {[%clk 0:01:28.1]} 32... Kg8 {[%clk 0:00:34.4]} 33. Na7
{[%clk 0:01:20.9]} 33... Rf8 {[%clk 0:00:32.9]} 34. Qh6 {[%clk 0:01:14.2]} 34...
Qxa7 {[%clk 0:00:32.9]} 35. Qxd6 {[%clk 0:01:13.7]} 35... e4 {[%clk 0:00:32.5]}
36. fxe4 {[%clk 0:01:10.8]} 36... f3 {[%clk 0:00:32.9]} 37. gxf3 {[%clk
0:01:09.8]} 37... Rxf3 {[%clk 0:00:33.4]} 38. Qd8+ {[%clk 0:01:07.6]} 38... Rf8
{[%clk 0:00:33]} 39. Qh4 {[%clk 0:01:07.4]} 39... Qf7 {[%clk 0:00:32.5]} 40. Rg2
{[%clk 0:00:27.8]} 40... Qf1+ {[%clk 0:00:27.6]} 41. Rg1 {[%clk 0:00:25.5]}
41... Qf3+ {[%clk 0:00:27.6]} 42. Rg2 {[%clk 0:00:23.7]} 42... Qxg2# {[%clk
0:00:28.5]} 0-1